Cogmind - Beta 16 @@@ ROGUE MODE // 2025.11.19 @ 23:15:10 Player: Wyvric Result: Destroyed by S-10 Pest with Light Assault Rifle Performance ------------- Evolutions (0) 0 Regions Visited (2) 400 Robots Destroyed (27) 135 Value Destroyed (644) 644 Prototype IDs (0) 0 Alien Tech Used (0) 0 Bonus (0) 0 TOTAL SCORE: 1179 Bonus ------- None Cogmind --------- Core Integrity 0/250 Matter 192/300 Energy 72/100 System Corruption 4% Temperature Hot (248) Movement Rolling (115) Ox1 Location -10/Mines Parts ------- > --- POWER (1) -------- (None) > --- PROPULSION (2) --- Compact Wheel > --- UTILITY (2) ------ Large Storage Unit Core Shielding > --- WEAPON (2) ------- Medium Laser Assault Rifle > --- INVENTORY (15) --- Ion Engine Light Treads Aluminum Leg Aluminum Leg Large Storage Unit Structural Scanner Seismic Detector EM Pulse Gun Beam Cannon Assault Rifle Light Assault Rifle Datajack Peak State ------------ > --- POWER ------------ Light Ion Engine > --- PROPULSION ------- Light Treads Light Treads > --- UTILITY ---------- Large Storage Unit Improved Terrain Scanner > --- WEAPON ----------- Light Assault Rifle Light Assault Rifle > --- INVENTORY -------- Ion Engine Aluminum Leg Aluminum Leg Wheel Wheel Compact Wheel Seismic Detector EM Pulse Gun Medium Laser Beam Cannon [Rating: 10] Favorites ----------- Power Light Ion Engine Engine Light Ion Engine Propulsion Light Treads Treads Light Treads Wheel Wheel Utility Large Storage Unit Device Improved Terrain Scanner Storage Large Storage Unit Protection Light Armor Plating Weapon Light Assault Rifle Energy Gun Medium Laser Ballistic Gun Light Assault Rifle Build | -11 -10 -10 ------- Run | Yrd Mat Min Slots Evolved . | . . . Power . | . . . Propulsion . | . . . Utility . | . . . Weapon . | . . . Parts Attached 21 | 7 13 1 Power 3 | 1 2 . Engine 3 | 1 2 . Core . | . . . Reactor . | . . . Propulsion 5 | 2 3 . Treads 2 | 2 . . Leg . | . . . Wheel 3 | . 3 . Hover . | . . . Flight . | . . . Utility 7 | 2 4 1 Device 3 | 1 2 . Storage 2 | 1 1 . Processor . | . . . Hackware . | . . . Protection 2 | . 1 1 Artifact . | . . . Weapon 6 | 2 4 . Energy Gun 1 | . 1 . Energy Cannon . | . . . Ballistic Gun 5 | 2 3 . Ballistic Cannon . | . . . Launcher . | . . . Special Weapon . | . . . Impact Weapon . | . . . Slashing Weapon . | . . . Piercing Weapon . | . . . Special Melee Weapon . | . . . Unidentified Prototypes . | . . . Parts Lost 8 | . 5 3 Power 3 | . 2 1 Propulsion 3 | . 2 1 Utility 1 | . 1 . Weapon 1 | . . 1 Highest Loss Streak 3 | . 2 3 To Critical Strikes . | . . . Average Backups 11 | 4 12 12 Power . | . 1 1 Propulsion 4 | 3 4 3 Utility 1 | . 2 2 Weapon 3 | . 3 5 Tool/Special . | . . . Unused Backups 8 | . 1 7 Power 1 | . . 1 Propulsion 2 | . . 2 Utility 2 | . 1 1 Weapon 2 | . . 2 Tool/Special 1 | . . 1 Average Slot Usage (%) 96 | . 96 95 Engine 12 | . 12 12 Treads 19 | . 22 . Wheel 7 | . 3 26 Device 10 | . 10 12 Storage 14 | . 14 14 Protection 3 | . 3 1 Energy Gun 4 | . 3 14 Ballistic Gun 22 | . 24 13 Peak Build Rating 10 | 9 10 8 Average Rating 8 | 6 8 7 On Entrance 5 | . 9 8 Avg Prop Armor Cover (%) 9 | . 9 . Naked Turns . | . . . Heaviest Build 32 | 11 32 30 Greatest Support 40 | 40 40 26 Greatest Overweight (x) 3 | . 3 1 Average Overweight (x) . | . . 1 Largest Inventory Capacity 15 | 8 15 15 Average Capacity 13 | 7 14 15 Most Carried 15 | 8 15 13 Average Carried 11 | 5 12 12 Final Capacity 15 | 8 15 15 Final Carried 12 | 8 12 12 Class Distribution -------------------- 100% | Mutant Dominant Class ---------------- Mutant | -10/Materials Mutant | -10/Mines Resources | -11 -10 -10 ----------- Run | Yrd Mat Min Matter Collected 606 | 280 291 35 Remotely . | . . . Salvage Created 862 | 61 787 14 Parts 66 | 10 55 1 Haulers Intercepted . | . . . Recyclers Shooed 1 | . 1 . Parts Field Recycled . | . . . Retrieved Matter . | . . . Parts Self-Destructed . | . . . Prevented . | . . . Parts Restored . | . . . Kills | -11 -10 -10 ------- Run | Yrd Mat Min Combat Hostiles Destroyed 21 | . 20 1 Guns 21 | . 20 1 Classes Destroyed 6 | 1 5 . Builder 1 | . 1 . Tunneler 3 | 3 . . Recycler 1 | . 1 . Operator 1 | . 1 . Swarmer 6 | . 5 1 Grunt 15 | . 15 . Best Kill Streak 9 | 2 9 1 Combat Bots Only 5 | . 5 1 Max Kills in Single Turn 2 | 1 2 1 Gunslinging 1 | . 1 . Exploded . | . . . Melee . | . . . Uniques/NPCs Destroyed . | . . . Combat | -11 -10 -10 -------- Run | Yrd Mat Min Hostile Shots Fired 165 | . 148 17 Missed 38 | . 35 3 Hits 127 | . 113 14 Projectile 127 | . 113 14 Critical Strikes 1 | . 1 . Damage Taken 1276 | . 1168 108 Core 257 | . 224 33 Absorbed by Shields . | . . . Redirected to Shielding 6 | . . 6 Regen/Repaired (Parts) 114 | . 114 . Core Remaining (%) 100 | 100 . . Volleys Fired 96 | 16 74 6 Largest 2 | 2 2 2 Hottest 70 | 40 70 70 Shots Fired 187 | 32 145 10 Gun 187 | 32 145 10 Cannon . | . . . Launcher . | . . . Special . | . . . Kinetic 157 | 32 121 4 Thermal 30 | . 24 6 Explosive . | . . . Electromagnetic . | . . . Robot Hit Streak 13 | 5 13 3 Robot Miss Streak 4 | 3 4 2 Penetration Max . | . . . Secondary Targets 5 | . 4 1 Max Gunslinging Chain 1 | . 1 1 Shots Hit Robots 124 | 15 103 6 Core Hits 53 | 6 46 1 Critical Kills . | . . . Critical Parts Destroyed 1 | . 1 . Critical Strikes 5 | . 3 2 Burn 4 | . 2 2 Destroy 1 | . 1 . Melee Attacks . | . . . Impact . | . . . Slashing . | . . . Piercing . | . . . Sneak Attacks . | . . . Combat Hostiles . | . . . Follow-up Attacks . | . . . Damage Inflicted 1318 | 118 1123 77 Guns 1315 | 118 1120 77 Cannons . | . . . Explosions . | . . . Melee . | . . . Ramming 3 | . 3 . Kinetic 1029 | 118 872 39 Thermal 286 | . 248 38 Explosive . | . . . Electromagnetic . | . . . Impact . | . . . Slashing . | . . . Piercing . | . . . Highest Corruption 4 | . 4 4 Average Corruption 3 | . 3 4 Corruption Purged . | . . . Corruption Blocked . | . . . Effects 22 | . 18 4 Message Errors 5 | . 4 1 Matter Fused 9 | . 8 1 Heat Flow Errors 5 | . 3 2 Parts Rejected 1 | . 1 . Data Loss (minor) 2 | . 2 . Overload Shots . | . . . Overflow Damage . | . . . Projectiles . | . . . Explosions . | . . . Melee . | . . . Knockbacks . | . . . Impact . | . . . Kinetic . | . . . Secondary . | . . . Self-Inflicted Damage . | . . . Shots . | . . . Rammed 1 | . 1 . Targets Rammed 1 | . 1 . Kicked . | . . . Crushed . | . . . Highest Temperature 375 | . 375 273 Average Temperature 118 | . 115 151 Received Heat Transfer 549 | . 549 . Effects 1 | . 1 . Interference 1 | . 1 . Siege Activations . | . . . Martial Activations . | . . . Shielding Activations . | . . . Robots Disrupted . | . . . Combat Hostiles . | . . . Robots Corrupted . | . . . Combat Hostiles . | . . . Parts Fried . | . . . Impact Corruptions . | . . . Robots Melted . | . . . Combat Hostiles . | . . . Parts Melted 5 | . 4 1 Heat Transferred 1147 | . 888 259 Parts Sabotaged . | . . . Parts Stolen . | . . . Parts Stripped . | . . . Power Chain Reactions . | . . . Alert | -11 -10 -10 ------- Run | Yrd Mat Min Maximum Alert Level 1 | . 1 . Low Security (%) 92 | 100 89 100 Level 1 7 | . 10 . Level 2 . | . . . Level 3 . | . . . Level 4 . | . . . Level 5 . | . . . High Security . | . . . Max Security . | . . . Peak Influence 237 | 10 237 82 Initial 82 | . . 82 Average 84 | 1 104 48 Influence Increases 649 | 15 599 35 Destroy 0b10 Robot/C 420 | . 400 20 Destroy 0b10 Robot/NC 30 | 15 15 . Destroy Leader 60 | . 60 . Successful Hack 64 | . 64 . Select Force Hacks 60 | . 60 . Lose Combat Pursuer 15 | . . 15 Influence Decreases 624 | 15 386 223 Entered New Map 131 | . . 131 Time Decay 421 | 15 336 70 Lost Part 72 | . 50 22 Squads Dispatched 3 | . 3 . Investigation 3 | . 3 . Extermination . | . . . Reinforcement . | . . . Assault . | . . . Garrison . | . . . Intercept . | . . . Searches Triggered . | . . . Construction Impeded . | . . . Haulers Reinforced . | . . . Active Scanning Responses . | . . . Cargo Convoy Interrupts . | . . . Stealth | -11 -10 -10 --------- Run | Yrd Mat Min Distress Signals 3 | . 3 . Communications Jammed . | . . . Distress Signals . | . . . Times Spotted 32 | . 28 4 Peak Tracking Total 6 | . 6 3 Tactical Retreats 1 | . . 1 Traps | -11 -10 -10 ------- Run | Yrd Mat Min Traps Triggered 3 | . 3 . Indirectly . | . . . Trap Hack Attempts . | . . . Triggered . | . . . Disarmed . | . . . Reprogrammed . | . . . Reused . | . . . Traps Extracted . | . . . Installed . | . . . Triggered . | . . . Machines | -11 -10 -10 ---------- Run | Yrd Mat Min Machines Disabled . | . . . Max in Single Turn . | . . . Machines Repaired . | . . . Machines Dismantled . | . . . Machines Sabotaged . | . . . Overloaded Fab Kills . | . . . Hacking | -11 -10 -10 --------- Run | Yrd Mat Min Machines Accessed 11 | . 11 . Terminals 8 | . 8 . Fabricators . | . . . Repair Stations 1 | . 1 . Recycling Units 2 | . 2 . Scanalyzers . | . . . Garrison Access . | . . . Total Hacks 34 | . 34 . Successful 17 | . 17 . Failed 16 | . 16 . Catastrophic 1 | . 1 . Database Lockouts 1 | . 1 . Manual 27 | . 27 . Terminals 30 | . 30 . Fabricators . | . . . Repair Stations 2 | . 2 . Recycling Units 2 | . 2 . Scanalyzers . | . . . Garrison Access . | . . . Terminal Hacks 3 | . 3 . Part Schematic 1 | . 1 . Robot Schematic 1 | . 1 . Locate Traps 1 | . 1 . Fabricator Hacks . | . . . Repair Station Hacks 2 | . 2 . Scan Component 1 | . 1 . Repair 1 | . 1 . Recycling Unit Hacks . | . . . Scanalyzer . | . . . Garrison Access Hacks . | . . . Unauthorized Hacks 12 | . 12 . Terminals 10 | . 10 . Botnet 2 | . 2 . Disrupt 1 | . 1 . Operators 1 | . 1 . Skim 6 | . 6 . Fabricators . | . . . Repair Stations . | . . . Recycling Units 2 | . 2 . Tunnel 2 | . 2 . Scanalyzers . | . . . Garrison Access . | . . . Data Cores Recovered . | . . . Used . | . . . Hacking Detections 6 | . 6 . Full Trace Events 1 | . 1 . Feedback Events . | . . . Feedback Blocked . | . . . Robot Schematics Acquired 1 | . 1 . Robots Built . | . . . Authchips . | . . . Time . | . . . Total Robot Build Rating . | . . . Part Schematics Acquired 1 | . 1 . Parts Built . | . . . Authchips . | . . . Time . | . . . Total Part Build Rating . | . . . Part Studies Acquired . | . . . Parts Repaired 1 | . 1 . Time 26 | . 26 . Parts Recycled . | . . . Recycled Matter . | . . . Retrieved Matter . | . . . Retrieved Components . | . . . Parts Scanalyzed . | . . . Part Schematics Acquired . | . . . Parts Damaged . | . . . Bothacking | -11 -10 -10 ------------ Run | Yrd Mat Min Used RIF Installer . | . . . Robots Hacked . | . . . Non-combat . | . . . Combat . | . . . Robot Hacks Applied . | . . . Relay Couplers Released . | . . . Fabnet Peak Effective % . | . . . Robots Rewired . | . . . Allies Hacked . | . . . Hacks Repelled . | . . . Allies | -11 -10 -10 -------- Run | Yrd Mat Min Total Allies . | . . . Largest Group . | . . . Highest-Rated Group . | . . . Highest-Rated Ally . | . . . Total Orders . | . . . Ally Attacks . | . . . Total Damage . | . . . Kills . | . . . Allies Corrupted . | . . . Allies Melted . | . . . Intel | -11 -10 -10 ------- Run | Yrd Mat Min Active Infowar (turns) 953 | 53 758 142 Terrain 701 | 53 648 . Structural 88 | . 88 . Seismic 164 | . 22 142 Robot Analysis Total . | . . . Derelict Logs Recovered . | . . . Drone Launches . | . . . Drone Recoveries . | . . . Exploration | -11 -10 -10 ------------- Run | Yrd Mat Min Turns Passed 1382 | 183 1042 157 Spaces Moved 712 | 80 504 128 Core 4 | 4 . . Treads 462 | 76 386 . Legs . | . . . Wheels 246 | . 118 128 Hover . | . . . Flight . | . . . Fastest Speed 50 | 50 95 105 Average Speed 143 | 154 151 105 Slowest Speed 240 | 160 240 105 Overloaded Moves . | . . . Propulsion Burnouts . | . . . Robots Hopped . | . . . Potential Cave-ins . | . . . Cave-ins Triggered . | . . . Exploration Rate (%) 41 | 6 95 24 Regions Visited 2 Branch Regions 1 Pre-discovered Areas 3 | . 3 . Known Exits Taken . | . . . Unknown Exits Taken 2 | 1 1 . Scrap Searched 1 | . . 1 Spaces Dug . | . . . Terrain Destroyed . | . . . Melee . | . . . Projectile . | . . . AOE . | . . . Terrain Rammed . | . . . Walls Destroyed . | . . . Machines Disabled . | . . . Actions | -11 -10 -10 --------- Run | Yrd Mat Min Total 900 | 110 650 140 Wait 47 | . 44 3 Move 710 | 79 503 128 Hop . | . . . Pick Up 18 | 8 9 1 Fast Attach 11 | 7 4 . Attach 5 | . 4 1 Detach . | . . . Swap 8 | . 7 1 Drop 4 | . 4 . Fire 96 | 16 74 6 Melee . | . . . Ram . | . . . Kick . | . . . Crush 1 | . 1 . Escape Stasis . | . . . Rewire . | . . . Trap . | . . . Miscellaneous . | . . . Route ------- -11/Scrapyard -10/Materials (discovered 5 exits: *Mat x3 / [*Min] / *Sub) -10/Mines (discovered 1 exit: *Mat) History --------- Turn | Location | Event 39 | -11/Scrapyard | Discovered new exit (range 16) 184 | -11/Scrapyard | Entered Materials 318 | -10/Materials | Build established: Mutant 330 | -10/Materials | Discovered new exit (range 9) 552 | -10/Materials | Discovered new exit (range 6) 621 | -10/Materials | Discovered new exit (range 16) 648 | -10/Materials | Learned Storage emergency access door positions 714 | -10/Materials | Identified exit to Materials 771 | -10/Materials | Identified exit to Subcaves 816 | -10/Materials | Learned 4 Recycling zone layouts 866 | -10/Materials | Repaired Lgt. Treads 913 | -10/Materials | Central database locked down 931 | -10/Materials | Core integrity fell below 50% 1144 | -10/Materials | Core integrity fell below 20% 1226 | -10/Materials | Entered Mines 1341 | -10/Mines | Found a hidden stash of uninstalled traps 1352 | -10/Mines | Discovered exit to Materials (range 8) 1383 | -10/Mines | Destroyed by S-10 Pest with Light Assault Rifle Last Messages --------------- 01254_ System corrupted: Heat flow error (+215). 01254_ Acquired Core Shielding. 01280_ T-07 Excavator is excavating. 01310_ System corrupted: Matter fused (-7). 01341_ A stash of uninstalled traps is collected here! 01346_ K-01 Serf collects debris. 01352_ EXIT=FOUND: MATERIALS 01359_ K-01 Serf collects debris. 01365_ Ion Engine destroyed. 01366_ Wheel destroyed. 01369_ S-10 Pest suffers critical hit (Burn). 01374_ K-01 Serf collects debris. 01375_ Flight Unit melted. 01375_ S-10 Pest destroyed. 01375_ Switching to secondary target: S-10 Pest. 01377_ Assault Rifle destroyed. 01379_ System corrupted: Heat flow error (+273). 01379_ K-01 Serf collects debris. 01380_ S-10 Pest suffers critical hit (Burn). Map ----- +----------------------------------------------------+ | | | | | | | ???????????????????????????????? | | ???????????????????????????????? | | ???????????????????????????????? | | ???????????????????????????????? | | ???????????????????????????????? | | ???????????????????????????????? | | ???????????????????????????????? | | ???????????????????????????????? | | ???????????????????????????????? | | ???????????????????????????????? | | ???????????????????????####????? | | ??????????????????????## ????? | | ??????????????????????# ????? | | ??????????????????????# ????? | | ?????????????????????## #????? | | ??????????????????####